bitfinex-derivatives/quotes_BTCF0:USTF0_20251216
["timestamp","ask_amount","ask_price","bid_price","bid_amount"]
[1765913348945,0.22031543,87391.0,87390.0,0.18098167]
[1765913349148,0.22231543,87391.0,87390.0,0.18098167]
[1765913349547,0.22131543,87391.0,87390.0,0.18098167]
[1765913350848,0.003,87391.0,87390.0,0.18098167]
[1765913351042,0.002,87391.0,87390.0,0.18098167]
[1765913351247,0.193385,87394.0,87393.0,0.192255]
[1765913351554,0.54274,87399.0,87398.0,0.1922544]
[1765913351751,0.56770201,87399.0,87398.0,0.1922544]
[1765913352143,0.02496201,87399.0,87398.0,0.1922544]
[1765913352342,0.18194,87404.0,87403.0,0.1922537]
[1765913352547,0.02496303,87404.0,87403.0,0.1922537]
[1765913353258,0.54274,87417.0,87416.0,0.192252]
[1765913354144,0.18194,87417.0,87416.0,0.192252]
[1765913354956,0.18194,87417.0,87416.0,0.189252]
[1765913355953,0.18194,87417.0,87416.0,0.17781]
[1765913356357,0.54274,87417.0,87416.0,0.001]
[1765913357053,0.1933829,87409.0,87408.0,0.00017167]
[1765913357356,0.5541829,87409.0,87408.0,0.00017167]
[1765913358452,0.5561829,87409.0,87408.0,0.00017167]
[1765913359060,0.5581829,87409.0,87408.0,0.00017167]
[1765913360145,0.5581829,87409.0,87408.0,1.67e-06]
[1765913360354,0.2369952,87392.0,87391.0,0.3608]
[1765913360550,0.18194,87390.0,87389.0,0.1922555]
[1765913363962,0.18194,87390.0,87389.0,0.1932555]
[1765913364862,0.1933854,87390.0,87389.0,0.1932555]
[1765913365265,0.18194,87390.0,87389.0,0.1932555]
[1765913365453,0.08913,87390.0,87389.0,0.1932555]
[1765913365854,0.18211167,87398.0,87397.0,0.18081]
[1765913366055,0.20697183,87398.0,87397.0,0.18081]
[1765913367366,0.21841623,87398.0,87397.0,0.18081]
[1765913367861,0.19555607,87398.0,87397.0,0.18081]
[1765913369858,0.19355607,87398.0,87397.0,0.18081]
[1765913370058,0.19455607,87398.0,87397.0,0.18081]
[1765913370458,0.19555607,87398.0,87397.0,0.18081]
[1765913371153,0.19455607,87398.0,87397.0,0.18081]
[1765913371464,0.19555607,87398.0,87397.0,0.18081]
[1765913371653,0.19555607,87398.0,87397.0,0.1922545]
[1765913371849,0.19555607,87398.0,87397.0,0.09303]
[1765913372049,0.1933846,87396.0,87395.0,0.1922548]
[1765913373459,0.00017167,87398.0,87397.0,0.1922545]
[1765913373661,0.18211167,87398.0,87397.0,0.1922545]
[1765913374556,0.18211167,87398.0,87397.0,0.1932545]
[1765913375161,0.18211167,87398.0,87397.0,0.18181]
[1765913377267,0.18211167,87398.0,87397.0,0.18081]
[1765913377469,0.18411167,87398.0,87397.0,0.18081]
[1765913378559,0.00217167,87398.0,87397.0,0.18081]
[1765913378961,0.00117167,87398.0,87397.0,0.54161]
[1765913379160,0.101092,87417.0,87416.0,0.0114419]
[1765913379361,0.36308787,87418.0,87417.0,0.17561]
[1765913379764,0.53897787,87418.0,87417.0,0.17561]
[1765913379961,0.00228787,87418.0,87417.0,0.17561]
[1765913380762,0.00228787,87418.0,87417.0,0.18706873]
[1765913381068,0.00228787,87418.0,87417.0,0.17561]
[1765913381265,0.00017167,87426.0,87425.0,0.1870508]
[1765913381974,0.18750237,87426.0,87425.0,0.17561]
[1765913382965,0.18850237,87426.0,87425.0,0.17561]
[1765913383466,0.18950237,87426.0,87425.0,0.17561]
[1765913384761,0.17806167,87426.0,87425.0,0.17561]
[1765913387573,0.00217167,87426.0,87425.0,0.17561]
[1765913388069,0.33300074,87440.0,87439.0,0.187049]
[1765913388265,0.08624,87440.0,87439.0,0.187049]
[1765913388466,0.56488099,87448.0,87447.0,0.187048]
[1765913388879,0.56488099,87448.0,87440.0,0.0114389]
[1765913388880,0.23011,87458.0,87457.0,0.1870467]
[1765913390266,0.23011,87458.0,87457.0,0.1880467]
[1765913391667,0.23011,87458.0,87457.0,0.1040767]
[1765913392373,0.23011,87458.0,87457.0,0.0124367]
[1765913392868,0.23011,87458.0,87457.0,0.1040767]
[1765913393076,0.17589,87458.0,87457.0,0.1880467]
[1765913393271,0.17589,87465.0,87464.0,0.1870457]
[1765913394374,0.23011,87465.0,87464.0,0.1870457]
[1765913395373,0.17589,87465.0,87464.0,0.1870457]
[1765913395671,0.08624,87465.0,87464.0,0.1870457]
[1765913396068,0.17589,87465.0,87464.0,0.1870457]
[1765913396389,0.17589,87465.0,87464.0,0.1880457]
[1765913397872,7e-08,87466.0,87465.0,0.22612]
[1765913398069,0.15700534,87490.0,87465.0,0.22612]
[1765913398070,0.76685,87483.0,87482.0,0.1870434]
[1765913398577,0.17589,87483.0,87482.0,0.1870434]
[1765913399369,0.17789,87483.0,87482.0,0.1870434]
[1765913399968,0.17989,87483.0,87482.0,0.1880434]
[1765913400767,0.17989,87483.0,87482.0,0.0124334]
[1765913400983,0.17989,87483.0,87482.0,0.1880434]
[1765913402972,0.00017051,87491.0,87482.0,0.1880434]
[1765913402973,0.00017051,87491.0,87490.0,0.1870423]
[1765913403377,0.00228578,87498.0,87497.0,0.1870414]
[1765913403677,0.00228578,87498.0,87497.0,0.5478414]
[1765913403886,0.53227,87513.0,87512.0,0.1800295]
[1765913404074,0.17147,87513.0,87512.0,0.1800295]
[1765913404264,0.17147,87504.0,87503.0,0.1800306]
[1765913404665,0.17147,87504.0,87503.0,0.0114306]
[1765913405075,0.17147,87504.0,87503.0,0.1800306]
[1765913405272,0.17147,87504.0,87503.0,0.0114306]
[1765913405474,0.17147,87504.0,87503.0,0.1800306]
[1765913405675,0.17447,87504.0,87503.0,0.1810306]
[1765913405878,0.17647,87504.0,87503.0,0.1810306]
[1765913407078,0.005,87504.0,87503.0,0.19267617]
[1765913407472,0.005,87504.0,87503.0,0.1810306]
[1765913408278,0.001,87504.0,87503.0,0.1800306]
[1765913408578,0.17147,87519.0,87518.0,0.1800287]
[1765913410066,0.17447,87519.0,87518.0,0.1800287]
[1765913410875,0.17747,87519.0,87518.0,0.1810287]
[1765913411484,0.17447,87519.0,87518.0,0.1810287]
[1765913411672,0.17647,87519.0,87518.0,0.1810287]
[1765913413478,0.07647,87519.0,87518.0,0.1810287]
[1765913413678,0.17647,87519.0,87518.0,0.1810287]
[1765913414381,0.17647,87519.0,87518.0,0.1696]
[1765913415180,0.17647,87519.0,87518.0,0.001]
[1765913415578,0.20106162,87519.0,87518.0,0.001]
[1765913415881,0.17147,87496.0,87480.0,0.3608]
[1765913416087,0.17147,87496.0,87478.0,0.3608]
[1765913416088,0.17147,87479.0,87478.0,0.3608]
[1765913416277,0.01769,87486.0,87474.0,0.1686]
[1765913416278,0.17147,87475.0,87474.0,0.1686]
[1765913416588,0.17147,87469.0,87468.0,0.5408352]
[1765913416769,0.53227,87479.0,87478.0,0.0114339]
[1765913416969,0.17147,87475.0,87474.0,0.0114343]
[1765913417170,0.17147,87475.0,87474.0,0.0926343]
[1765913417380,0.17147,87475.0,87474.0,0.1800343]
[1765913418476,0.17147,87475.0,87474.0,0.1810343]
[1765913418893,0.17247,87475.0,87474.0,0.1810343]
[1765913419792,0.001,87475.0,87474.0,0.1810343]
[1765913420384,0.00017146,87487.0,87486.0,0.1800329]
[1765913420691,0.53227,87502.0,87501.0,0.1800309]
[1765913421682,0.17147,87502.0,87501.0,0.1800309]
[1765913422087,0.17147,87502.0,87501.0,0.1810309]
[1765913422976,0.17147,87502.0,87501.0,0.1820309]
[1765913424186,0.17147,87502.0,87501.0,0.1706]
[1765913424393,0.17147,87502.0,87501.0,0.002]
[1765913424777,0.19615848,87502.0,87501.0,0.002]
[1765913425981,0.55695848,87502.0,87501.0,0.002]
[1765913426183,0.55695848,87502.0,87501.0,0.001]
[1765913426481,0.55695848,87502.0,87501.0,0.002]
[1765913427087,0.55695848,87502.0,87501.0,0.001]
[1765913427288,0.17147,87494.0,87493.0,0.00017146]
[1765913427486,0.19615848,87494.0,87493.0,0.00017146]
[1765913427895,0.19616976,87494.0,87493.0,0.00017146]
[1765913428291,0.44669,87502.0,87501.0,0.0812]
[1765913428492,0.17147,87494.0,87493.0,0.16877146]
[1765913429190,0.17247,87494.0,87493.0,0.16877146]
[1765913429391,0.17247,87494.0,87493.0,0.18020346]
[1765913429998,0.17147,87494.0,87493.0,0.18120346]
[1765913430686,0.17147,87494.0,87493.0,0.18320346]
[1765913433000,0.17147,87494.0,87493.0,0.18220346]
[1765913433192,0.08289,87494.0,87493.0,0.18420346]
[1765913433501,0.17147,87494.0,87493.0,0.18420346]
[1765913434291,0.17147,87494.0,87493.0,0.18220346]
[1765913434493,0.17147,87494.0,87493.0,0.17277146]
[1765913434891,0.17147,87494.0,87493.0,0.17077146]
[1765913435098,0.17147,87494.0,87493.0,0.17277146]
[1765913435297,0.3608,87501.0,87500.0,0.187901]
[1765913435298,0.52784,87501.0,87500.0,0.187901]
[1765913435499,0.55255313,87501.0,87500.0,0.187901]
[1765913436692,0.55255313,87501.0,87500.0,0.099971]
[1765913436904,0.1784718,87494.0,87493.0,0.19007336]
[1765913437402,0.16704,87494.0,87493.0,0.19007336]
[1765913437592,0.52884,87501.0,87500.0,0.187901]
[1765913437792,0.55356291,87501.0,87500.0,0.187901]
[1765913438398,0.55256291,87501.0,87500.0,0.187901]
[1765913438600,0.55356291,87501.0,87500.0,0.187901]
[1765913438901,0.55356291,87501.0,87500.0,0.188901]
[1765913439096,0.55356291,87501.0,87500.0,0.001]
[1765913439698,0.55356291,87501.0,87500.0,0.08954]
[1765913439898,0.55356291,87501.0,87500.0,0.17747]
[1765913440606,0.55356291,87501.0,87500.0,0.17647]
[1765913440903,0.55356291,87501.0,87500.0,0.17747]
[1765913441294,0.55256291,87501.0,87500.0,0.17647]
[1765913441493,0.55356291,87501.0,87500.0,0.17747]
[1765913442100,0.001,87501.0,87500.0,0.17747]
[1765913442307,0.1794709,87501.0,87500.0,0.001]
[1765913442501,0.1794709,87501.0,87500.0,0.08954]
[1765913442808,0.52784,87509.0,87508.0,0.1879]
[1765913443099,0.52784,87518.0,87517.0,0.1878988]
[1765913443302,0.0247495,87518.0,87517.0,0.1878988]
[1765913443503,0.52784,87527.0,87526.0,0.1878976]
[1765913443700,0.19179018,87527.0,87526.0,0.1878976]
[1765913444501,0.19179018,87527.0,87520.0,0.22774]
[1765913444502,0.16704,87521.0,87520.0,0.22774]
[1765913444699,0.16704,87521.0,87520.0,0.2391684]
[1765913445001,0.08401,87521.0,87520.0,0.2391684]
[1765913445600,0.16704,87521.0,87520.0,0.2391684]
[1765913446207,0.17004,87521.0,87520.0,0.2401684]
[1765913446407,0.17004,87521.0,87520.0,0.17747]
[1765913446903,0.17204,87521.0,87520.0,0.001]
[1765913447110,0.17204,87521.0,87520.0,0.17747]
[1765913447809,0.19692085,87521.0,87520.0,0.17747]
[1765913448411,0.17204,87521.0,87520.0,0.17747]
[1765913449094,0.19692178,87521.0,87520.0,0.17747]
[1765913449298,0.17204,87521.0,87520.0,0.17747]
[1765913452312,0.60759198,87521.0,87520.0,0.001]
[1765913452802,0.16704,87519.0,87518.0,0.00017146]
[1765913453112,0.19191198,87519.0,87518.0,0.00017146]
[1765913454099,0.16704,87519.0,87518.0,0.00117146]
[1765913454308,0.19491004,87519.0,87518.0,0.00117146]
[1765913454509,0.19591004,87519.0,87518.0,0.00117146]
[1765913459013,0.004,87519.0,87518.0,0.17764146]
[1765913459505,0.53012474,87538.0,87537.0,0.1878962]
[1765913459708,0.55500759,87538.0,87537.0,0.1878962]
[1765913460012,0.16932474,87538.0,87537.0,0.1878962]
[1765913460719,0.00428474,87538.0,87537.0,0.1878962]
[1765913461804,0.13401,87549.0,87548.0,0.0114248]
[1765913462013,0.21704,87549.0,87548.0,0.1878948]
[1765913462508,0.2284646,87549.0,87548.0,0.17647]
[1765913462909,0.1784652,87545.0,87544.0,0.17647]
[1765913463112,0.16704,87545.0,87544.0,0.22774]
[1765913463514,0.16704,87545.0,87544.0,0.17647]
[1765913464108,0.17004,87545.0,87544.0,0.17647]
[1765913464712,0.1801757,87541.0,87540.0,0.00017136]
[1765913465111,0.1801757,87541.0,87540.0,0.08054136]
[1765913465309,0.1831752,87545.0,87544.0,0.21443]
[1765913465816,0.003,87545.0,87544.0,0.21443]
[1765913466012,0.08681,87545.0,87544.0,0.21443]
[1765913466217,0.08481,87545.0,87544.0,0.21443]
[1765913466422,0.13381,87549.0,87548.0,0.16439]
[1765913466713,0.13381,87549.0,87548.0,0.1758148]
[1765913467510,0.21875,87549.0,87548.0,0.16439]
[1765913467710,0.1801757,87541.0,87540.0,0.16456136]
[1765913467911,0.16875,87541.0,87540.0,0.16456136]
[1765913468116,0.08381,87541.0,87540.0,0.16456136]
[1765913468319,0.0952352,87545.0,87544.0,0.21443]
[1765913468621,0.08381,87545.0,87544.0,0.2258553]
[1765913468807,0.0952348,87548.0,87547.0,0.1758149]
[1765913469013,0.1801748,87548.0,87547.0,0.1758149]
[1765913469617,0.051,87549.0,87548.0,0.16439]
[1765913469815,0.21875,87549.0,87548.0,0.16439]
[1765913471121,0.22075,87549.0,87548.0,0.16439]
[1765913471324,0.22175,87549.0,87548.0,0.16439]
[1765913471621,0.16875,87547.0,87546.0,0.3608]
[1765913471819,0.1801757,87541.0,87540.0,0.00017136]
[1765913472317,0.1801757,87541.0,87540.0,0.08054136]
[1765913472520,0.1801757,87541.0,87540.0,0.00017136]
[1765913472721,0.5409757,87541.0,87540.0,0.00017136]
[1765913472921,0.1801775,87527.0,87526.0,0.5366176]
[1765913473518,0.1801782,87522.0,87521.0,0.21566]
[1765913473716,0.1801782,87522.0,87521.0,0.16439]
[1765913473916,0.0952382,87522.0,87521.0,0.16439]
[1765913474126,0.1801782,87522.0,87521.0,0.16439]
[1765913474322,0.1801782,87522.0,87520.0,0.0114283]
[1765913474323,0.16875,87521.0,87520.0,0.0114283]
[1765913474524,0.16875,87521.0,87517.0,0.3608]
[1765913474725,0.16875,87518.0,87517.0,0.5366188]
[1765913475230,0.0584775,87528.0,87513.0,0.16456136]
[1765913475231,0.16875,87514.0,87513.0,0.16456136]
[1765913475426,0.1801792,87514.0,87513.0,0.16456136]
[1765913476027,0.1801792,87514.0,87513.0,0.08054136]
[1765913476330,0.1801792,87514.0,87513.0,0.00117136]
[1765913476631,0.1801792,87514.0,87513.0,0.00217136]
[1765913477026,0.56587161,87514.0,87513.0,0.00017136]
[1765913477321,0.56587161,87514.0,87513.0,0.00117136]
[1765913477624,0.16875,87500.0,87499.0,0.0918011]
[1765913477826,0.16875,87500.0,87499.0,0.1758211]
[1765913478220,0.08381,87500.0,87499.0,0.1758211]
[1765913478426,0.16875,87510.0,87509.0,0.1758199]
[1765913479028,0.00017136,87518.0,87506.0,0.0114302]
[1765913479029,0.16875,87507.0,87506.0,0.0114302]
[1765913479228,0.16875,87507.0,87506.0,0.0918002]
[1765913479433,0.16875,87507.0,87506.0,0.1758202]
[1765913480629,0.16875,87507.0,87506.0,0.1778202]
[1765913480820,0.16875,87507.0,87506.0,0.1788202]
[1765913481321,0.21614,87507.0,87506.0,0.003]
[1765913481726,0.16875,87507.0,87506.0,0.16739]
[1765913482126,0.16875,87507.0,87506.0,0.16539]
[1765913482326,0.16875,87507.0,87506.0,0.003]
[1765913482832,0.16875,87507.0,87506.0,0.002]
[1765913483033,0.16875,87507.0,87506.0,0.001]
[1765913483234,0.16875,87507.0,87506.0,0.16639]
[1765913483734,0.16875,87507.0,87506.0,0.08237]
[1765913483933,0.16875,87507.0,87506.0,0.16539]
[1765913485633,0.16875,87507.0,87506.0,0.16639]
[1765913486137,0.16875,87507.0,87506.0,0.16539]
[1765913486324,0.16875,87507.0,87506.0,0.16639]
[1765913486929,0.16875,87507.0,87506.0,0.16539]
[1765913487137,0.16875,87507.0,87506.0,0.002]
[1765913488333,0.0114299,87509.0,87508.0,0.16439]
[1765913488641,0.1801799,87509.0,87508.0,0.16439]
[1765913489334,0.0114296,87512.0,87511.0,0.16439]
[1765913489533,0.16892136,87518.0,87517.0,0.16439]
[1765913489737,0.18035006,87518.0,87517.0,0.16439]
[1765913489932,0.16892136,87518.0,87517.0,0.16439]
[1765913490331,0.00017136,87518.0,87517.0,0.16439]
[1765913490725,0.00017136,87518.0,87517.0,0.52519]
[1765913491726,0.00017136,87518.0,87517.0,0.52619]
[1765913491933,0.00017136,87518.0,87517.0,0.52719]
[1765913492337,0.00017136,87518.0,87517.0,0.52619]
[1765913492638,0.00017136,87518.0,87517.0,0.52919]
[1765913492943,0.16892136,87518.0,87517.0,0.52919]
[1765913494735,0.16892136,87518.0,87517.0,0.52719]
[1765913495034,0.16892136,87518.0,87517.0,0.004]
[1765913495640,0.16892136,87518.0,87517.0,0.07807]
[1765913495846,0.16892136,87518.0,87517.0,0.003]
[1765913496343,0.16892136,87518.0,87517.0,0.001]
[1765913496546,0.16892136,87518.0,87517.0,0.002]
[1765913497234,0.16892136,87518.0,87517.0,0.15777]
[1765913497833,0.16892136,87518.0,87517.0,0.15677]
[1765913498346,0.1708795,87512.0,87511.0,0.0114295]
[1765913498639,0.15945,87512.0,87511.0,0.1671995]
[1765913499742,0.15945,87512.0,87511.0,0.1681995]
[1765913499941,0.15945,87512.0,87511.0,0.001]
[1765913500248,0.20428,87512.0,87511.0,0.001]
[1765913500431,0.18440479,87512.0,87511.0,0.001]
[1765913500636,0.18440479,87512.0,87511.0,0.15677]
[1765913500939,0.18440479,87512.0,87511.0,0.07807]
[1765913501142,0.15945,87510.0,87509.0,0.00017136]
[1765913501346,0.18440479,87510.0,87509.0,0.00017136]
[1765913501943,0.18440479,87510.0,87509.0,0.15594136]
[1765913502746,0.18440479,87510.0,87509.0,0.07724136]
[1765913502945,0.18440479,87510.0,87509.0,0.00017136]
[1765913503341,0.18440479,87510.0,87509.0,0.00117136]
[1765913503641,0.170881,87500.0,87499.0,0.3608]
[1765913503846,0.19587575,87500.0,87499.0,0.3608]
[1765913504048,0.19587575,87500.0,87499.0,0.43787]
[1765913504250,0.19587575,87500.0,87499.0,0.51657]
[1765913504550,0.19587575,87500.0,87499.0,0.15577]
[1765913505050,0.15945,87500.0,87499.0,0.15577]
[1765913505549,0.08216,87500.0,87499.0,0.15577]
[1765913505751,0.0114307,87503.0,87502.0,0.15577]
[1765913506239,0.0935907,87503.0,87502.0,0.15577]
[1765913506440,0.08216,87503.0,87502.0,0.15577]
[1765913506636,0.08216,87503.0,87502.0,0.51657]
[1765913507448,0.08216,87503.0,87502.0,0.51757]
[1765913508243,0.08216,87503.0,87502.0,0.51857]
[1765913508754,0.0935905,87504.0,87503.0,0.1672006]
[1765913509444,0.1708805,87504.0,87503.0,0.1672006]
[1765913510055,0.1708805,87504.0,87503.0,0.15577]
[1765913510347,0.15945,87503.0,87502.0,0.3618]
[1765913510551,0.15945,87503.0,87502.0,0.43887]
[1765913511338,0.15945,87503.0,87502.0,0.07807]
[1765913511552,0.15945,87499.0,87498.0,0.07935578]
[1765913511852,0.1708812,87499.0,87498.0,0.00228578]
[1765913512050,0.19599922,87499.0,87498.0,0.00228578]
[1765913513050,0.18456802,87499.0,87498.0,0.15805578]
[1765913513355,0.0935908,87502.0,87501.0,0.15577]
[1765913513747,0.1708808,87502.0,87501.0,0.15577]
[1765913513955,0.1708798,87510.0,87509.0,0.15577]
[1765913514159,0.19599283,87510.0,87509.0,0.1671999]
[1765913514861,0.19599283,87510.0,87509.0,0.15577]
[1765913515045,0.19599283,87510.0,87504.0,0.04722]
[1765913515046,0.15945,87502.0,87501.0,0.001]
[1765913515250,0.15945,87499.0,87498.0,0.07935578]
[1765913515451,0.15945,87499.0,87498.0,0.15805578]
[1765913517644,0.15945,87499.0,87498.0,0.15905578]
[1765913517844,0.15945,87499.0,87498.0,0.16005578]
[1765913518262,0.15945,87499.0,87498.0,0.15905578]
[1765913518659,0.15945,87499.0,87498.0,0.16105578]
[1765913521251,0.15945,87499.0,87498.0,0.15905578]
[1765913521453,0.19600577,87499.0,87498.0,0.00328578]
[1765913521654,0.1708821,87492.0,87491.0,6e-08]
[1765913521966,0.15945,87478.0,87477.0,0.1672038]
[1765913522463,0.15945,87496.0,87495.0,0.1672016]
[1765913522762,0.18457269,87496.0,87495.0,0.07707]
[1765913522968,0.15945,87489.0,87488.0,0.0885025]
[1765913523152,0.15945,87489.0,87488.0,0.1672025]
[1765913523546,0.15945,87489.0,87488.0,0.2144225]
[1765913524152,0.15945,87489.0,87488.0,0.1672025]
[1765913524350,0.15945,87489.0,87488.0,0.0885025]
[1765913524562,0.15945,87489.0,87488.0,0.2087625]
[1765913524760,0.15945,87489.0,87488.0,0.2097625]
[1765913525968,0.15945,87489.0,87488.0,0.2117625]
[1765913526571,0.15945,87489.0,87488.0,0.003]
[1765913526868,0.15945,87489.0,87488.0,0.15169]
[1765913527066,0.15874,87499.0,87498.0,0.1601213]
[1765913527271,0.00017146,87504.0,87503.0,0.1601206]
[1765913527960,0.02536173,87504.0,87503.0,0.1601206]
[1765913528162,0.00017146,87504.0,87503.0,0.1601206]
[1765913528868,0.00017146,87504.0,87503.0,0.1621206]
[1765913529470,0.00017146,87504.0,87503.0,0.1641206]
[1765913529670,0.01160196,87504.0,87503.0,0.1641206]
[1765913529861,0.17034196,87504.0,87503.0,0.07598]
[1765913530170,0.19553546,87504.0,87503.0,0.002]
[1765913530364,0.19553546,87504.0,87503.0,0.004]
[1765913530666,0.23994546,87504.0,87503.0,0.004]
[1765913530972,0.23994546,87504.0,87503.0,0.002]
[1765913531167,0.23994546,87504.0,87503.0,0.003]
[1765913531569,0.23994546,87504.0,87503.0,0.002]
[1765913532072,0.19553546,87504.0,87503.0,0.07498]
[1765913532278,0.23962546,87504.0,87503.0,0.001]
[1765913532465,0.170172,87493.0,87492.0,0.011432]
[1765913532862,0.170172,87493.0,87492.0,0.085412]
[1765913533062,0.170172,87493.0,87492.0,0.160122]
[1765913534374,0.170172,87493.0,87492.0,0.161122]
[1765913534570,0.15874,87493.0,87492.0,0.161122]
[1765913535667,0.15874,87493.0,87487.0,0.00017146]
[1765913535668,0.1701726,87488.0,87487.0,0.00017146]
[1765913535869,0.59942676,87488.0,87487.0,0.00017146]
[1765913536666,0.59942676,87488.0,87476.0,0.3608]
[1765913536667,0.170174,87477.0,87476.0,0.3608]
[1765913536866,0.170174,87477.0,87476.0,0.3722342]
[1765913537063,0.51954,87488.0,87487.0,0.14869]
[1765913537277,0.54472705,87488.0,87487.0,0.14869]
[1765913537465,0.55715965,87488.0,87487.0,0.14869]
[1765913537666,0.55715965,87488.0,87487.0,0.07398]
[1765913538468,0.55715965,87488.0,87487.0,0.07498]
[1765913539082,0.55615965,87488.0,87487.0,0.07498]
[1765913539578,0.55615965,87488.0,87487.0,0.14969]
[1765913539780,0.55615965,87488.0,87487.0,0.14869]
[1765913540774,0.55615965,87488.0,87487.0,0.14969]
[1765913541469,0.55615965,87488.0,87487.0,0.15069]
[1765913542079,0.55615965,87488.0,87487.0,0.14969]
[1765913542278,0.19535965,87488.0,87487.0,0.15069]
[1765913542868,0.19535965,87488.0,87487.0,0.002]
[1765913542869,0.23676965,87488.0,87487.0,0.002]
[1765913543072,0.59756965,87488.0,87487.0,0.001]
[1765913544179,0.1701737,87480.0,87479.0,0.14886146]
[1765913544677,0.1701737,87480.0,87479.0,0.00017146]
[1765913545676,0.2131637,87480.0,87479.0,0.00017146]
[1765913546276,0.2141637,87480.0,87479.0,0.00017146]
[1765913546782,0.95559682,87480.0,87479.0,0.00017146]
[1765913547383,0.1701751,87469.0,87468.0,0.0854152]
[1765913547977,0.15874,87469.0,87468.0,0.1601252]
[1765913548681,0.15874,87469.0,87468.0,0.1611252]
[1765913548872,0.15874,87469.0,87468.0,0.1621252]
[1765913550082,0.15874,87469.0,87468.0,0.15069]
[1765913551085,0.00017146,87477.0,87476.0,0.1601242]
[1765913551380,0.44131,87489.0,87488.0,0.2056726]
[1765913552191,0.3608,87489.0,87488.0,0.2056726]
[1765913552376,0.02900198,87494.0,87493.0,0.160122]
[1765913552776,0.00017146,87497.0,87496.0,0.1601216]
[1765913554277,0.14592146,87497.0,87496.0,0.1621216]
[1765913554485,0.00017146,87497.0,87496.0,0.1621216]
[1765913554680,0.00017146,87497.0,87496.0,0.1641216]
[1765913554880,0.3608,87510.0,87496.0,0.1641216]
[1765913554881,0.43358,87510.0,87509.0,0.1663899]
[1765913555187,0.51148,87510.0,87509.0,0.1663899]
[1765913556187,0.51148,87510.0,87509.0,0.1673899]
[1765913557079,0.51148,87510.0,87509.0,0.1683899]
[1765913557282,0.51148,87510.0,87509.0,0.15696]
[1765913557480,0.51148,87510.0,87509.0,0.15596]
[1765913557690,0.51148,87510.0,87509.0,0.001]
[1765913557894,0.53672991,87510.0,87509.0,0.002]
[1765913558097,0.53673002,87510.0,87509.0,0.002]
[1765913558990,0.53673002,87510.0,87509.0,0.001]
[1765913559291,0.53673002,87510.0,87509.0,0.002]
[1765913560487,0.53673002,87510.0,87501.0,0.00017146]
[1765913560488,0.15068,87502.0,87501.0,0.00017146]
[1765913560888,0.1621108,87502.0,87501.0,0.00017146]
[1765913561590,0.1631108,87502.0,87501.0,0.00017146]
[1765913561891,0.18836607,87502.0,87501.0,0.00017146]
[1765913562193,0.18836607,87502.0,87501.0,0.16656236]
[1765913562194,0.001,87502.0,87501.0,0.16656236]
[1765913562399,0.51248,87510.0,87509.0,0.15496]
[1765913562588,0.53773615,87510.0,87509.0,0.15496]
[1765913562783,0.51248,87510.0,87509.0,0.15496]
[1765913564298,0.51148,87510.0,87509.0,0.15496]
[1765913564689,0.51148,87510.0,87501.0,0.00017146]
[1765913564690,0.3608,87510.0,87506.0,0.1663902]
[1765913564890,0.43358,87510.0,87509.0,0.1663899]
[1765913565195,0.15068,87510.0,87509.0,0.1673899]
[1765913567089,0.15068,87510.0,87509.0,0.0114299]
[1765913567289,0.15068,87510.0,87509.0,0.001]
[1765913567891,0.1621099,87509.0,87508.0,0.01143]
[1765913568599,0.15068,87502.0,87501.0,0.00017146]
[1765913568800,0.51148,87502.0,87501.0,0.00017146]
[1765913569101,0.53671595,87502.0,87501.0,0.00017146]
[1765913570401,0.53671595,87502.0,87501.0,0.00117146]
[1765913571204,0.53671595,87502.0,87501.0,0.00017146]
[1765913571205,0.53771595,87502.0,87501.0,0.00017146]
[1765913571406,0.53871595,87502.0,87501.0,0.00017146]
[1765913571889,0.53671595,87502.0,87482.0,0.3608]
[1765913572090,0.1621125,87489.0,87488.0,0.15496]
[1765913573497,0.1621125,87489.0,87488.0,0.19777]
[1765913573898,0.3608,87495.0,87488.0,0.19777]
[1765913573899,0.3608,87495.0,87494.0,0.15496]
[1765913574204,0.00017146,87497.0,87496.0,0.19777]
[1765913574797,0.01160286,87497.0,87496.0,0.19777]
[1765913574998,0.08438286,87497.0,87496.0,0.19777]
[1765913575205,0.07295146,87497.0,87496.0,0.19777]
[1765913575506,0.07295146,87497.0,87496.0,0.19977]
[1765913575703,0.07295146,87497.0,87496.0,0.20177]
[1765913575907,0.00017146,87497.0,87496.0,0.20177]
[1765913576996,0.00017146,87497.0,87496.0,0.19977]
[1765913577193,0.00017146,87497.0,87496.0,0.20177]
[1765913580403,0.00017146,87497.0,87496.0,0.19977]
[1765913580703,1.46e-06,87497.0,87496.0,0.20177]
[1765913580908,1.46e-06,87497.0,87496.0,0.19977]
[1765913581301,1.46e-06,87497.0,87496.0,0.20177]
[1765913581711,1.46e-06,87497.0,87496.0,0.19977]
[1765913581896,1.46e-06,87497.0,87496.0,0.20177]
[1765913583108,1.46e-06,87497.0,87496.0,0.20277]
[1765913583496,0.00100146,87497.0,87496.0,0.20377]
[1765913583702,0.00100146,87497.0,87496.0,0.20077]
[1765913583912,0.00100146,87497.0,87496.0,0.20377]
[1765913584306,0.00100146,87497.0,87496.0,0.20077]
[1765913584615,0.1567393,87514.0,87513.0,0.1636093]
[1765913584810,0.18207153,87514.0,87513.0,0.1636093]
[1765913585113,0.17064223,87514.0,87513.0,0.1636093]
[1765913585302,0.14531,87514.0,87513.0,0.1636093]
[1765913587507,0.14531,87514.0,87513.0,0.1646093]
[1765913587709,0.14531,87514.0,87513.0,0.1656093]
[1765913587916,0.17057961,87514.0,87513.0,0.1656093]
[1765913588815,0.17057961,87514.0,87513.0,0.1666093]
[1765913589312,0.17057961,87514.0,87513.0,0.003]
[1765913589512,0.17057961,87514.0,87513.0,0.0144293]
[1765913589707,0.17057961,87514.0,87513.0,0.1625093]
[1765913590317,0.02526961,87514.0,87513.0,0.1605093]
[1765913590508,0.0114279,87525.0,87521.0,0.1595083]
[1765913590509,0.14364146,87522.0,87521.0,0.1595083]
[1765913590816,0.18033679,87522.0,87521.0,0.1595083]
[1765913591717,0.14347,87517.0,87516.0,0.50888]
[1765913592314,0.14347,87517.0,87516.0,0.5203089]
[1765913593918,0.14347,87517.0,87516.0,0.5223089]